[Event "Late-Titled-Tuesday-Blitz-May-28-2024"]
[Site "Chess.com"]
[Date "2024.05.28"]
[Round "3"]
[White "Maikrosoft63"]
[Black "TheoSlade"]
[Result "0-1"]
[WhiteElo "2596"]
[BlackElo "2460"]
[TimeControl "180+1"]
[EndTime "14:28:02 PDT"]
[Termination "TheoSlade won by resignation"]

1. e4 {[%clk 0:03:00.9]} 1... e5 {[%clk 0:02:59.8]} 2. Nc3 {[%clk 0:02:56.6]}
2... Nf6 {[%clk 0:02:59.6]} 3. f4 {[%clk 0:02:56.3]} 3... d5 {[%clk 0:02:59.7]}
4. fxe5 {[%clk 0:02:56.5]} 4... Nxe4 {[%clk 0:03:00.3]} 5. Qf3 {[%clk
0:02:56.7]} 5... f5 {[%clk 0:03:00.1]} 6. d3 {[%clk 0:02:55.7]} 6... Nxc3 {[%clk
0:02:57.6]} 7. bxc3 {[%clk 0:02:56.6]} 7... d4 {[%clk 0:02:58.2]} 8. Qg3 {[%clk
0:02:48.9]} 8... dxc3 {[%clk 0:02:57.8]} 9. Be2 {[%clk 0:02:47.1]} 9... Be6
{[%clk 0:02:46.5]} 10. Bf3 {[%clk 0:02:45.7]} 10... Nc6 {[%clk 0:02:36.6]} 11.
Ne2 {[%clk 0:02:44.4]} 11... Qd7 {[%clk 0:02:31.8]} 12. O-O {[%clk 0:02:33.3]}
12... Bc5+ {[%clk 0:02:28.5]} 13. Kh1 {[%clk 0:02:33.1]} 13... O-O-O {[%clk
0:02:24]} 14. Nf4 {[%clk 0:02:18.1]} 14... Nd4 {[%clk 0:02:18.4]} 15. Rb1 {[%clk
0:02:13.4]} 15... Nxf3 {[%clk 0:02:08.5]} 16. Qxf3 {[%clk 0:02:13.2]} 16... Bd5
{[%clk 0:02:08.3]} 17. Nxd5 {[%clk 0:02:10.3]} 17... Qxd5 {[%clk 0:02:08.4]} 18.
Qxd5 {[%clk 0:02:06.1]} 18... Rxd5 {[%clk 0:02:08.3]} 19. Rxf5 {[%clk
0:02:06.6]} 19... g6 {[%clk 0:01:58.2]} 20. Rf7 {[%clk 0:01:51.8]} 20... Rxe5
{[%clk 0:01:57.5]} 21. Bf4 {[%clk 0:01:49]} 21... Re7 {[%clk 0:01:55.3]} 22.
Rxe7 {[%clk 0:01:43]} 22... Bxe7 {[%clk 0:01:56.2]} 23. Be5 {[%clk 0:01:42.7]}
23... Rf8 {[%clk 0:01:54.8]} 24. Kg1 {[%clk 0:01:36.3]} 24... Bc5+ {[%clk
0:01:46.1]} 25. d4 {[%clk 0:01:35.9]} 25... Bd6 {[%clk 0:01:46.4]} 26. Bxd6
{[%clk 0:01:26.6]} 26... cxd6 {[%clk 0:01:47.3]} 27. Rb3 {[%clk 0:01:27.1]}
27... Kd7 {[%clk 0:01:45.5]} 28. Rxb7+ {[%clk 0:01:25.3]} 28... Kc6 {[%clk
0:01:40]} 29. Rxa7 {[%clk 0:01:22.7]} 29... Rb8 {[%clk 0:01:37.6]} 30. Ra3
{[%clk 0:01:16.7]} 30... Kd5 {[%clk 0:01:31.9]} 31. Rxc3 {[%clk 0:01:16.4]}
31... Kxd4 {[%clk 0:01:32.5]} 32. Rd3+ {[%clk 0:00:59]} 32... Kc5 {[%clk
0:01:33]} 33. Rb3 {[%clk 0:00:54.9]} 33... Ra8 {[%clk 0:01:29.6]} 34. a3 {[%clk
0:00:53.8]} 34... Ra4 {[%clk 0:01:20.6]} 35. Kf2 {[%clk 0:00:53.8]} 35... Rf4+
{[%clk 0:01:08.7]} 36. Rf3 {[%clk 0:00:53.8]} 36... Rc4 {[%clk 0:01:07.7]} 37.
c3 {[%clk 0:00:37.6]} 37... Ra4 {[%clk 0:01:04.9]} 38. Ke3 {[%clk 0:00:31.5]}
38... Rxa3 {[%clk 0:01:03.6]} 39. Kd3 {[%clk 0:00:31.7]} 39... Ra2 {[%clk
0:01:03.2]} 40. Rg3 {[%clk 0:00:32.3]} 40... Kd5 {[%clk 0:01:00.8]} 41. Rg5+
{[%clk 0:00:30.3]} 41... Ke6 {[%clk 0:01:01]} 42. c4 {[%clk 0:00:28.2]} 42...
Kf6 {[%clk 0:01:00.7]} 43. h4 {[%clk 0:00:27.1]} 43... h6 {[%clk 0:00:59.6]} 44.
Rg3 {[%clk 0:00:27]} 44... Ra3+ {[%clk 0:00:59.4]} 45. Kd4 {[%clk 0:00:27.1]}
45... Rxg3 {[%clk 0:01:00.3]} 0-1

[Event "Late-Titled-Tuesday-Blitz-May-28-2024"]
[Site "Chess.com"]
[Date "2024.05.28"]
[Round "3"]
[White "andrew-blr"]
[Black "Josetricks"]
[Result "0-1"]
[WhiteElo "2619"]
[BlackElo "2476"]
[TimeControl "180+1"]
[EndTime "14:28:04 PDT"]
[Termination "Josetricks won on time"]

1. d4 {[%clk 0:03:00.9]} 1... Nf6 {[%clk 0:02:53.8]} 2. c4 {[%clk 0:02:57.4]}
2... e5 {[%clk 0:02:46.8]} 3. dxe5 {[%clk 0:02:56.5]} 3... Ng4 {[%clk
0:02:45.5]} 4. Bf4 {[%clk 0:02:54.1]} 4... Nc6 {[%clk 0:02:41.6]} 5. Nf3 {[%clk
0:02:53.7]} 5... Bb4+ {[%clk 0:02:32.6]} 6. Nbd2 {[%clk 0:02:53.2]} 6... Qe7
{[%clk 0:02:30]} 7. a3 {[%clk 0:02:48]} 7... Bxd2+ {[%clk 0:02:23]} 8. Qxd2
{[%clk 0:02:44.6]} 8... Ngxe5 {[%clk 0:02:20.4]} 9. Nxe5 {[%clk 0:02:43.9]} 9...
Nxe5 {[%clk 0:02:21]} 10. e3 {[%clk 0:02:42.8]} 10... d6 {[%clk 0:02:17.8]} 11.
Be2 {[%clk 0:02:39.8]} 11... O-O {[%clk 0:02:13.7]} 12. O-O {[%clk 0:02:39.4]}
12... a5 {[%clk 0:02:10.6]} 13. b4 {[%clk 0:02:35.2]} 13... axb4 {[%clk
0:02:11.5]} 14. axb4 {[%clk 0:02:35.2]} 14... Bg4 {[%clk 0:02:03.7]} 15. f3
{[%clk 0:02:31.9]} 15... Be6 {[%clk 0:02:00.7]} 16. Qc3 {[%clk 0:02:27.8]} 16...
Qf6 {[%clk 0:01:52.8]} 17. Rac1 {[%clk 0:01:28.9]} 17... h6 {[%clk 0:01:45.4]}
18. c5 {[%clk 0:01:27]} 18... Ra2 {[%clk 0:01:42.6]} 19. Rf2 {[%clk 0:01:12.1]}
19... Rfa8 {[%clk 0:01:36.4]} 20. Qd4 {[%clk 0:01:08.5]} 20... Ra1 {[%clk
0:01:32]} 21. Rff1 {[%clk 0:00:41.1]} 21... R1a2 {[%clk 0:01:26.1]} 22. Rf2
{[%clk 0:00:34.8]} 22... Ra1 {[%clk 0:01:23.2]} 23. Rxa1 {[%clk 0:00:31.6]}
23... Rxa1+ {[%clk 0:01:21.4]} 24. Rf1 {[%clk 0:00:31.9]} 24... Ra2 {[%clk
0:01:19.3]} 25. cxd6 {[%clk 0:00:25.5]} 25... cxd6 {[%clk 0:01:19.3]} 26. Qxd6
{[%clk 0:00:24.5]} 26... Ng6 {[%clk 0:01:13.4]} 27. Bd3 {[%clk 0:00:17]} 27...
Qb2 {[%clk 0:00:54.6]} 28. Qd8+ {[%clk 0:00:03.6]} 28... Kh7 {[%clk 0:00:50.3]}
29. Bxg6+ {[%clk 0:00:03.8]} 29... fxg6 {[%clk 0:00:49.5]} 0-1

[Event "Late-Titled-Tuesday-Blitz-May-28-2024"]
[Site "Chess.com"]
[Date "2024.05.28"]
[Round "3"]
[White "biostatistician"]
[Black "stollenmonster"]
[Result "0-1"]
[WhiteElo "2575"]
[BlackElo "2858"]
[TimeControl "180+1"]
[EndTime "14:28:06 PDT"]
[Termination "stollenmonster won by resignation"]

1. d4 {[%clk 0:03:00]} 1... Nf6 {[%clk 0:02:47.9]} 2. Nf3 {[%clk 0:03:00]} 2...
e6 {[%clk 0:02:47.7]} 3. c4 {[%clk 0:03:00.3]} 3... d5 {[%clk 0:02:48]} 4. Nc3
{[%clk 0:03:00.5]} 4... Ne4 {[%clk 0:02:48.2]} 5. e3 {[%clk 0:02:56.6]} 5... f5
{[%clk 0:02:48.2]} 6. Nxe4 {[%clk 0:02:51.8]} 6... fxe4 {[%clk 0:02:49.1]} 7.
Ne5 {[%clk 0:02:52.5]} 7... g6 {[%clk 0:02:49]} 8. h4 {[%clk 0:02:42.4]} 8...
Nd7 {[%clk 0:02:48.2]} 9. Nxd7 {[%clk 0:02:39]} 9... Bxd7 {[%clk 0:02:49.1]} 10.
h5 {[%clk 0:02:39.5]} 10... Bg7 {[%clk 0:02:40.7]} 11. hxg6 {[%clk 0:02:38.6]}
11... hxg6 {[%clk 0:02:41.6]} 12. Rxh8+ {[%clk 0:02:38.8]} 12... Bxh8 {[%clk
0:02:42.5]} 13. Qg4 {[%clk 0:02:39]} 13... Qf6 {[%clk 0:02:42.5]} 14. Bd2 {[%clk
0:02:33]} 14... O-O-O {[%clk 0:02:37.7]} 15. Qg3 {[%clk 0:02:33.1]} 15... dxc4
{[%clk 0:02:15.3]} 16. Bxc4 {[%clk 0:02:31.4]} 16... e5 {[%clk 0:02:15.6]} 17.
Bc3 {[%clk 0:02:22.1]} 17... exd4 {[%clk 0:01:31]} 18. Bxd4 {[%clk 0:02:23]}
18... Qc6 {[%clk 0:01:31]} 19. Be2 {[%clk 0:01:16.5]} 19... Bxd4 {[%clk
0:01:28.3]} 20. exd4 {[%clk 0:01:17.4]} 20... Rh8 {[%clk 0:01:17.4]} 21. Kd2
{[%clk 0:01:07]} 21... Rf8 {[%clk 0:01:16.3]} 22. Rc1 {[%clk 0:01:05.1]} 22...
Qb6 {[%clk 0:01:16.5]} 23. Qe3 {[%clk 0:00:47.5]} 23... Qxb2+ {[%clk 0:01:15.2]}
24. Rc2 {[%clk 0:00:47.7]} 24... Qb4+ {[%clk 0:01:04]} 25. Rc3 {[%clk 0:00:36]}
25... Bc6 {[%clk 0:00:57.9]} 26. Qg3 {[%clk 0:00:28.6]} 26... Qxd4+ {[%clk
0:00:56.1]} 27. Ke1 {[%clk 0:00:27.3]} 27... Rd8 {[%clk 0:00:48.6]} 28. Qe3
{[%clk 0:00:18]} 28... Qb4 {[%clk 0:00:47.6]} 29. Bd1 {[%clk 0:00:13.2]} 29...
Rd3 {[%clk 0:00:42.2]} 30. Bg4+ {[%clk 0:00:10.4]} 30... Kb8 {[%clk 0:00:42.2]}
0-1

[Event "Late-Titled-Tuesday-Blitz-May-28-2024"]
[Site "Chess.com"]
[Date "2024.05.28"]
[Round "3"]
[White "DanylaBagrov"]
[Black "bubeliang"]
[Result "0-1"]
[WhiteElo "2491"]
[BlackElo "2808"]
[TimeControl "180+1"]
[EndTime "14:28:08 PDT"]
[Termination "bubeliang won by resignation"]

1. e4 {[%clk 0:03:00.9]} 1... c6 {[%clk 0:02:59.8]} 2. d4 {[%clk 0:03:00.3]}
2... d5 {[%clk 0:03:00.7]} 3. exd5 {[%clk 0:03:00.9]} 3... cxd5 {[%clk
0:03:01.6]} 4. Bd3 {[%clk 0:03:01.2]} 4... Nc6 {[%clk 0:03:01.7]} 5. c3 {[%clk
0:03:01.5]} 5... Qc7 {[%clk 0:03:02.2]} 6. Nf3 {[%clk 0:03:01.2]} 6... Bg4
{[%clk 0:03:01.3]} 7. O-O {[%clk 0:02:57.7]} 7... e6 {[%clk 0:02:56.9]} 8. Nbd2
{[%clk 0:02:48.4]} 8... Bd6 {[%clk 0:02:55.5]} 9. h3 {[%clk 0:02:47.9]} 9... Bh5
{[%clk 0:02:55.2]} 10. Re1 {[%clk 0:02:45.6]} 10... Nf6 {[%clk 0:02:54.3]} 11.
Nf1 {[%clk 0:02:44.9]} 11... O-O {[%clk 0:02:54]} 12. Bg5 {[%clk 0:02:44.1]}
12... Nd7 {[%clk 0:02:48.6]} 13. Bh4 {[%clk 0:02:39.9]} 13... Rfe8 {[%clk
0:02:47.5]} 14. Bg3 {[%clk 0:02:11.8]} 14... Bg6 {[%clk 0:02:45.5]} 15. b4
{[%clk 0:02:04.2]} 15... Nf6 {[%clk 0:02:41]} 16. Bxd6 {[%clk 0:01:49.5]} 16...
Qxd6 {[%clk 0:02:41.9]} 17. Ng3 {[%clk 0:01:42.9]} 17... Rac8 {[%clk 0:02:39.6]}
18. Ne5 {[%clk 0:01:40]} 18... Ne7 {[%clk 0:02:36.3]} 19. Rc1 {[%clk 0:01:37.2]}
19... Bxd3 {[%clk 0:02:35.1]} 20. Qxd3 {[%clk 0:01:34.8]} 20... Ng6 {[%clk
0:02:34.9]} 21. Re3 {[%clk 0:01:18.1]} 21... Rc7 {[%clk 0:02:30.3]} 22. Qd2
{[%clk 0:01:09.8]} 22... Rec8 {[%clk 0:02:27.8]} 23. Nd3 {[%clk 0:01:10.4]}
23... b6 {[%clk 0:02:25.6]} 24. a4 {[%clk 0:01:10.3]} 24... Qd8 {[%clk
0:02:18.7]} 25. b5 {[%clk 0:00:54.5]} 25... Ne8 {[%clk 0:02:16.1]} 26. Nb4
{[%clk 0:00:54.2]} 26... Ne7 {[%clk 0:02:13.5]} 27. Ne2 {[%clk 0:00:50.6]} 27...
Nd6 {[%clk 0:02:12.9]} 28. Qe1 {[%clk 0:00:35.9]} 28... Nef5 {[%clk 0:02:10.8]}
29. Rf3 {[%clk 0:00:34.5]} 29... Qd7 {[%clk 0:02:10.4]} 30. g4 {[%clk
0:00:30.2]} 30... Nh4 {[%clk 0:02:08]} 31. Re3 {[%clk 0:00:28.1]} 31... Nc4
{[%clk 0:02:07.9]} 32. Rg3 {[%clk 0:00:24.4]} 32... Qd6 {[%clk 0:02:04.1]} 33.
f4 {[%clk 0:00:18.5]} 33... Ng6 {[%clk 0:01:54.5]} 34. Qf2 {[%clk 0:00:18.5]}
34... f5 {[%clk 0:01:53.2]} 35. Nd3 {[%clk 0:00:14.9]} 35... Qf8 {[%clk
0:01:49.7]} 36. Ne5 {[%clk 0:00:15.1]} 36... Nd6 {[%clk 0:01:50]} 37. gxf5
{[%clk 0:00:15]} 37... Qxf5 {[%clk 0:01:46.9]} 38. Rg5 {[%clk 0:00:14.4]} 38...
Ne4 {[%clk 0:01:41.6]} 39. Rxf5 {[%clk 0:00:14.1]} 39... Nxf2 {[%clk 0:01:41.9]}
40. Rh5 {[%clk 0:00:12.7]} 40... Nxe5 {[%clk 0:01:38.1]} 41. Rxe5 {[%clk
0:00:11]} 41... Nd3 {[%clk 0:01:38.2]} 42. Re1 {[%clk 0:00:08.5]} 42... Nxe5
{[%clk 0:01:38.6]} 43. dxe5 {[%clk 0:00:08]} 43... Rxc3 {[%clk 0:01:37.5]} 44.
Nd4 {[%clk 0:00:08.6]} 44... Kf7 {[%clk 0:01:35.3]} 45. f5 {[%clk 0:00:06.8]}
45... exf5 {[%clk 0:01:32.8]} 46. e6+ {[%clk 0:00:07.7]} 46... Kf6 {[%clk
0:01:32]} 47. e7 {[%clk 0:00:08]} 47... Re8 {[%clk 0:01:31.4]} 48. Nc6 {[%clk
0:00:08.1]} 48... Rxc6 {[%clk 0:01:24.3]} 49. bxc6 {[%clk 0:00:07.9]} 49... Rxe7
{[%clk 0:01:25.2]} 50. Rd1 {[%clk 0:00:08.5]} 50... Ke6 {[%clk 0:01:25.1]} 0-1

[Event "Late-Titled-Tuesday-Blitz-May-28-2024"]
[Site "Chess.com"]
[Date "2024.05.28"]
[Round "3"]
[White "rasmussvane"]
[Black "VD_coach"]
[Result "1-0"]
[WhiteElo "2940"]
[BlackElo "2524"]
[TimeControl "180+1"]
[EndTime "14:28:08 PDT"]
[Termination "rasmussvane won by resignation"]

1. Nf3 {[%clk 0:02:59]} 1... Nf6 {[%clk 0:02:59.4]} 2. g3 {[%clk 0:02:56.7]}
2... g6 {[%clk 0:02:59.6]} 3. Bg2 {[%clk 0:02:57]} 3... Bg7 {[%clk 0:03:00.1]}
4. O-O {[%clk 0:02:57.3]} 4... O-O {[%clk 0:03:00.8]} 5. d4 {[%clk 0:02:57.6]}
5... d6 {[%clk 0:03:01.3]} 6. Re1 {[%clk 0:02:56.6]} 6... Nbd7 {[%clk
0:03:00.9]} 7. e4 {[%clk 0:02:56.3]} 7... e5 {[%clk 0:03:01.4]} 8. Nc3 {[%clk
0:02:56.2]} 8... c6 {[%clk 0:03:01.2]} 9. a4 {[%clk 0:02:55.7]} 9... a5 {[%clk
0:03:00.5]} 10. h3 {[%clk 0:02:51.1]} 10... Re8 {[%clk 0:02:58]} 11. Be3 {[%clk
0:02:51.1]} 11... Qe7 {[%clk 0:02:40.3]} 12. Nd2 {[%clk 0:02:43.9]} 12... exd4
{[%clk 0:02:28.3]} 13. Bxd4 {[%clk 0:02:42.6]} 13... Ne5 {[%clk 0:02:23.6]} 14.
f4 {[%clk 0:02:39.6]} 14... Nh5 {[%clk 0:01:59.3]} 15. Bf2 {[%clk 0:01:58.4]}
15... Nd7 {[%clk 0:01:40.1]} 16. Nc4 {[%clk 0:01:57]} 16... Bf8 {[%clk
0:01:26.2]} 17. Qd2 {[%clk 0:01:56.7]} 17... Rd8 {[%clk 0:01:19.3]} 18. Rad1
{[%clk 0:01:55.8]} 18... Nb8 {[%clk 0:00:52.5]} 19. g4 {[%clk 0:01:42.2]} 19...
Ng7 {[%clk 0:00:43.8]} 20. e5 {[%clk 0:01:36.2]} 20... d5 {[%clk 0:00:40.2]} 21.
Ne4 {[%clk 0:01:35.2]} 21... Nd7 {[%clk 0:00:35.5]} 22. Nb6 {[%clk 0:01:06]}
22... dxe4 {[%clk 0:00:18.6]} 23. Nxa8 {[%clk 0:01:05.6]} 23... Ne6 {[%clk
0:00:19]} 24. Qe3 {[%clk 0:00:31.7]} 24... Ndc5 {[%clk 0:00:13.6]} 25. Nb6
{[%clk 0:00:29]} 25... Rxd1 {[%clk 0:00:12.3]} 26. Rxd1 {[%clk 0:00:29.1]} 26...
Bh6 {[%clk 0:00:10.8]} 27. Nxc8 {[%clk 0:00:25.6]} 1-0

[Event "Late-Titled-Tuesday-Blitz-May-28-2024"]
[Site "Chess.com"]
[Date "2024.05.28"]
[Round "3"]
[White "RobertJFischer71"]
[Black "kirillshevchenko"]
[Result "0-1"]
[WhiteElo "2660"]
[BlackElo "2902"]
[TimeControl "180+1"]
[EndTime "14:28:14 PDT"]
[Termination "kirillshevchenko won by checkmate"]

1. e4 {[%clk 0:03:00.9]} 1... b6 {[%clk 0:02:57.2]} 2. d4 {[%clk 0:02:59.9]}
2... Bb7 {[%clk 0:02:57.8]} 3. Nc3 {[%clk 0:02:59.6]} 3... e6 {[%clk 0:02:52.9]}
4. Nf3 {[%clk 0:02:59.3]} 4... Bb4 {[%clk 0:02:45.7]} 5. Bd3 {[%clk 0:02:59.3]}
5... Nf6 {[%clk 0:02:43.5]} 6. Qe2 {[%clk 0:02:59.5]} 6... c5 {[%clk 0:02:35.8]}
7. a3 {[%clk 0:02:47.5]} 7... Bxc3+ {[%clk 0:02:33.9]} 8. bxc3 {[%clk
0:02:48.4]} 8... c4 {[%clk 0:02:34.6]} 9. Bxc4 {[%clk 0:02:48.8]} 9... Nxe4
{[%clk 0:02:33.8]} 10. Bb2 {[%clk 0:02:13.1]} 10... Qc7 {[%clk 0:02:17.5]} 11.
O-O {[%clk 0:02:12.7]} 11... O-O {[%clk 0:02:15.9]} 12. Rfe1 {[%clk 0:01:17]}
12... d6 {[%clk 0:01:53.5]} 13. Bd3 {[%clk 0:00:51.3]} 13... Nf6 {[%clk
0:01:51.2]} 14. h3 {[%clk 0:00:39]} 14... Nbd7 {[%clk 0:01:50.6]} 15. a4 {[%clk
0:00:36.1]} 15... Rfe8 {[%clk 0:01:47.1]} 16. Qd2 {[%clk 0:00:28]} 16... e5
{[%clk 0:01:46.6]} 17. dxe5 {[%clk 0:00:26.9]} 17... dxe5 {[%clk 0:01:46.1]} 18.
Ng5 {[%clk 0:00:16.6]} 18... Nc5 {[%clk 0:01:43.4]} 19. c4 {[%clk 0:00:14.5]}
19... h6 {[%clk 0:01:38.8]} 20. Nf3 {[%clk 0:00:11.3]} 20... Bxf3 {[%clk
0:01:36.7]} 21. gxf3 {[%clk 0:00:11]} 21... Rad8 {[%clk 0:01:32.6]} 22. Qe2
{[%clk 0:00:10.8]} 22... Nh5 {[%clk 0:01:24.2]} 23. Qe3 {[%clk 0:00:09.4]} 23...
Qd7 {[%clk 0:01:14.1]} 24. Bf1 {[%clk 0:00:08.8]} 24... Qf5 {[%clk 0:01:10.7]}
25. Rac1 {[%clk 0:00:01.3]} 25... Nf4 {[%clk 0:01:09.8]} 26. Kh2 {[%clk
0:00:01]} 26... f6 {[%clk 0:01:04.1]} 27. a5 {[%clk 0:00:01]} 27... Na4 {[%clk
0:01:02.8]} 28. Ba3 {[%clk 0:00:01.6]} 28... Kh8 {[%clk 0:00:50.4]} 29. Qb3
{[%clk 0:00:02]} 29... Rd2 {[%clk 0:00:48.1]} 30. Qxa4 {[%clk 0:00:01.4]} 30...
Rxf2+ {[%clk 0:00:48.2]} 31. Kg1 {[%clk 0:00:02.1]} 31... Rxf1+ {[%clk
0:00:41.6]} 32. Rxf1 {[%clk 0:00:01.9]} 32... Qg5+ {[%clk 0:00:41.7]} 33. Kf2
{[%clk 0:00:02.5]} 33... Qg2+ {[%clk 0:00:42.1]} 34. Ke3 {[%clk 0:00:02.9]}
34... Qe2# {[%clk 0:00:43]} 0-1

[Event "Late-Titled-Tuesday-Blitz-May-28-2024"]
[Site "Chess.com"]
[Date "2024.05.28"]
[Round "3"]
[White "maurovargas01"]
[Black "ImportedItalianMaple"]
[Result "0-1"]
[WhiteElo "1919"]
[BlackElo "2532"]
[TimeControl "180+1"]
[EndTime "14:28:14 PDT"]
[Termination "ImportedItalianMaple won on time"]

1. e4 {[%clk 0:02:08.7]} 1... c5 {[%clk 0:02:59.1]} 2. Nc3 {[%clk 0:02:08.1]}
2... a6 {[%clk 0:02:59]} 3. f4 {[%clk 0:02:09]} 3... b5 {[%clk 0:02:59.1]} 4.
Nf3 {[%clk 0:02:09.9]} 4... Bb7 {[%clk 0:02:59.2]} 5. Nd5 {[%clk 0:02:09.6]}
5... e6 {[%clk 0:02:58]} 6. Ne3 {[%clk 0:02:08.8]} 6... Bxe4 {[%clk 0:02:57.7]}
7. g3 {[%clk 0:02:07.6]} 7... d5 {[%clk 0:02:54.6]} 8. d3 {[%clk 0:02:05.7]}
8... Bxf3 {[%clk 0:02:45.8]} 9. Qxf3 {[%clk 0:02:05.3]} 9... Nc6 {[%clk
0:02:43.6]} 10. Bg2 {[%clk 0:02:05]} 10... Bd6 {[%clk 0:02:41.2]} 11. O-O {[%clk
0:02:04.5]} 11... Nge7 {[%clk 0:02:30.9]} 12. f5 {[%clk 0:02:04.2]} 12... Nd4
{[%clk 0:02:31.2]} 13. Qf2 {[%clk 0:01:56]} 13... Nexf5 {[%clk 0:02:29.2]} 14.
Nxf5 {[%clk 0:01:50.7]} 14... Nxf5 {[%clk 0:02:28.3]} 15. g4 {[%clk 0:01:48.9]}
15... Qc7 {[%clk 0:02:06.2]} 16. gxf5 {[%clk 0:01:46.5]} 16... Bxh2+ {[%clk
0:02:06.1]} 17. Kh1 {[%clk 0:01:46.4]} 17... O-O-O {[%clk 0:02:06]} 18. Bf4
{[%clk 0:01:36.1]} 18... Bxf4 {[%clk 0:02:04.2]} 19. Qxf4 {[%clk 0:01:36]} 19...
Qxf4 {[%clk 0:01:55.4]} 20. Rxf4 {[%clk 0:01:35.6]} 20... e5 {[%clk 0:01:56]}
21. Rg4 {[%clk 0:01:29.9]} 21... g6 {[%clk 0:01:54.2]} 22. fxg6 {[%clk
0:01:22.2]} 22... hxg6+ {[%clk 0:01:54.5]} 23. Kg1 {[%clk 0:01:21.7]} 23... Rd6
{[%clk 0:01:46.4]} 24. Re1 {[%clk 0:01:15.2]} 24... f5 {[%clk 0:01:42.3]} 25.
Rg5 {[%clk 0:01:13.6]} 25... Re8 {[%clk 0:01:42.6]} 26. c3 {[%clk 0:01:08.1]}
26... Kc7 {[%clk 0:01:41.8]} 27. d4 {[%clk 0:01:06.5]} 27... cxd4 {[%clk
0:01:40.2]} 28. cxd4 {[%clk 0:01:06.2]} 28... e4 {[%clk 0:01:40.3]} 29. Rc1+
{[%clk 0:01:04.3]} 29... Kb6 {[%clk 0:01:37.2]} 30. Bh3 {[%clk 0:00:49.9]} 30...
Ree6 {[%clk 0:01:29.5]} 31. Kf1 {[%clk 0:00:41.9]} 31... Rc6 {[%clk 0:01:29]}
32. Rxc6+ {[%clk 0:00:29.9]} 32... Rxc6 {[%clk 0:01:29.9]} 33. b4 {[%clk
0:00:23.1]} 33... a5 {[%clk 0:01:28.2]} 34. bxa5+ {[%clk 0:00:22]} 34... Kxa5
{[%clk 0:01:28.5]} 35. Bxf5 {[%clk 0:00:20.9]} 35... gxf5 {[%clk 0:01:16.8]} 36.
Rxf5 {[%clk 0:00:20.8]} 36... Rd6 {[%clk 0:01:17.5]} 37. Re5 {[%clk 0:00:19.5]}
37... Kb4 {[%clk 0:01:17.5]} 38. Ke2 {[%clk 0:00:18.7]} 38... Kc4 {[%clk
0:01:18.1]} 39. Ke3 {[%clk 0:00:17.1]} 39... Ra6 {[%clk 0:01:18.6]} 40. Re7
{[%clk 0:00:15.8]} 40... Ra3+ {[%clk 0:01:18.3]} 41. Kf4 {[%clk 0:00:12.5]}
41... Kxd4 {[%clk 0:01:18.8]} 42. Rb7 {[%clk 0:00:08.3]} 42... Rxa2 {[%clk
0:01:19]} 43. Rxb5 {[%clk 0:00:07.8]} 43... Rf2+ {[%clk 0:01:19.4]} 44. Kg3
{[%clk 0:00:07.2]} 44... Rf8 {[%clk 0:01:20]} 45. Rb7 {[%clk 0:00:02.5]} 45...
e3 {[%clk 0:01:19.1]} 46. Re7 {[%clk 0:00:01.4]} 46... Kd3 {[%clk 0:01:19.4]}
0-1

[Event "Late-Titled-Tuesday-Blitz-May-28-2024"]
[Site "Chess.com"]
[Date "2024.05.28"]
[Round "3"]
[White "Robert_Oros"]
[Black "VirtualCoach"]
[Result "1-0"]
[WhiteElo "2440"]
[BlackElo "2192"]
[TimeControl "180+1"]
[EndTime "14:28:16 PDT"]
[Termination "Robert_Oros won on time"]

1. e4 {[%clk 0:02:57.7]} 1... c5 {[%clk 0:03:00]} 2. a3 {[%clk 0:02:56.9]} 2...
e6 {[%clk 0:02:59.3]} 3. b4 {[%clk 0:02:55.6]} 3... cxb4 {[%clk 0:02:59.7]} 4.
axb4 {[%clk 0:02:55.9]} 4... Bxb4 {[%clk 0:02:58.4]} 5. Bb2 {[%clk 0:02:56.1]}
5... Nf6 {[%clk 0:02:54.9]} 6. e5 {[%clk 0:02:55.3]} 6... Nd5 {[%clk 0:02:52.6]}
7. c4 {[%clk 0:02:54]} 7... Ne7 {[%clk 0:02:50.4]} 8. Qg4 {[%clk 0:02:46.3]}
8... Ng6 {[%clk 0:02:47.1]} 9. Nf3 {[%clk 0:02:39.6]} 9... Nc6 {[%clk
0:02:43.4]} 10. h4 {[%clk 0:02:35.1]} 10... h5 {[%clk 0:02:41.1]} 11. Qe4 {[%clk
0:02:32.6]} 11... Be7 {[%clk 0:02:37.6]} 12. Nc3 {[%clk 0:02:18.3]} 12... a6
{[%clk 0:02:26.4]} 13. d4 {[%clk 0:02:06.6]} 13... Qc7 {[%clk 0:02:25.6]} 14.
Nb5 {[%clk 0:02:00.4]} 14... Qb8 {[%clk 0:02:12.1]} 15. Nd6+ {[%clk 0:01:56.1]}
15... Bxd6 {[%clk 0:02:10.7]} 16. exd6 {[%clk 0:01:56.2]} 16... Qxd6 {[%clk
0:02:11]} 17. Ba3 {[%clk 0:01:55.7]} 17... Qf4 {[%clk 0:02:03.8]} 18. Qxf4
{[%clk 0:01:53.5]} 18... Nxf4 {[%clk 0:02:03.3]} 19. Bd6 {[%clk 0:01:54.2]}
19... Ng6 {[%clk 0:01:59.2]} 20. Bd3 {[%clk 0:01:50]} 20... Nce7 {[%clk
0:01:57.7]} 21. O-O {[%clk 0:01:38]} 21... b6 {[%clk 0:01:27.5]} 22. Be4 {[%clk
0:01:36]} 22... Nc6 {[%clk 0:01:24.4]} 23. d5 {[%clk 0:01:27.2]} 23... exd5
{[%clk 0:01:07.7]} 24. Bxd5 {[%clk 0:01:13.4]} 24... Nge7 {[%clk 0:00:38.1]} 25.
Rfe1 {[%clk 0:01:11.1]} 25... Ra7 {[%clk 0:00:25.9]} 26. Rxe7+ {[%clk
0:01:02.6]} 26... Nxe7 {[%clk 0:00:20.1]} 27. Re1 {[%clk 0:01:03.2]} 27... Kd8
{[%clk 0:00:17.6]} 28. Bxe7+ {[%clk 0:00:49.2]} 28... Kc7 {[%clk 0:00:17.3]} 29.
c5 {[%clk 0:00:49.7]} 29... b5 {[%clk 0:00:16]} 30. Bd6+ {[%clk 0:00:47.3]}
30... Kd8 {[%clk 0:00:16.2]} 31. Ng5 {[%clk 0:00:47]} 1-0